Cogmind - Beta 15 @@@ ROGUE MODE // 2025.05.11 @ 16:36:40 Player: gorb Result: Destroyed self with Mini Grenade Launcher Performance ------------- Evolutions (1) 500 Regions Visited (3) 600 Robots Destroyed (4) 20 Value Destroyed (158) 158 Prototype IDs (0) 0 Alien Tech Used (0) 0 Bonus (200) 200 TOTAL SCORE: 1478 Bonus ------- Pacifist 200 Cogmind --------- Core Integrity 0/400 Matter 295/300 Energy 100/100 System Corruption 0% Temperature Cool (9) Movement Core (200) Ox3 Location -9/Materials Parts ------- > --- POWER (1) -------- (None) > --- PROPULSION (2) --- (None) > --- UTILITY (4) ------ Medium Storage Unit Power Shielding > --- WEAPON (2) ------- (None) > --- INVENTORY (10) --- Ion Engine Aluminum Leg Aluminum Leg Small Storage Unit EM Pulse Gun Small Laser Heavy Assault Rifle Heavy Assault Rifle Peak State ------------ > --- POWER ------------ Ion Engine > --- PROPULSION ------- Wheel Compact Wheel > --- UTILITY ---------- Small Storage Unit Power Shielding Light Armor Plating > --- WEAPON ----------- Small Laser Small Laser > --- INVENTORY -------- Light Ion Engine Aluminum Leg Aluminum Leg EM Pulse Gun Small Laser Small Laser Mining Laser [Rating: 8] Favorites ----------- Power Ion Engine Engine Ion Engine Propulsion Wheel Wheel Wheel Utility Small Storage Unit Storage Small Storage Unit Protection Power Shielding Weapon Small Laser Energy Gun Small Laser Launcher Mini Grenade Launcher Special Weapon Mining Laser Build | -11 -10 -10 -9 ------- Run | Yrd Mat Min Mat Slots Evolved 2 | . . . 2 Power . | . . . . Propulsion . | . . . . Utility 2 | . . . 2 Weapon . | . . . . Parts Attached 14 | 6 1 . 7 Power 2 | 1 . . 1 Engine 2 | 1 . . 1 Core . | . . . . Reactor . | . . . . Propulsion 2 | 2 . . . Treads . | . . . . Leg . | . . . . Wheel 2 | 2 . . . Hover . | . . . . Flight . | . . . . Utility 4 | 1 1 . 2 Device . | . . . . Storage 2 | 1 . . 1 Processor . | . . . . Hackware . | . . . . Protection 2 | . 1 . 1 Artifact . | . . . . Weapon 6 | 2 . . 4 Energy Gun 4 | 2 . . 2 Energy Cannon . | . . . . Ballistic Gun . | . . . . Ballistic Cannon . | . . . . Launcher 1 | . . . 1 Special Weapon 1 | . . . 1 Impact Weapon . | . . . . Slashing Weapon . | . . . . Piercing Weapon . | . . . . Special Melee Weapon . | . . . . Unidentified Prototypes . | . . . . Parts Lost 9 | . . . 9 Power 1 | . . . 1 Propulsion 2 | . . . 2 Utility 1 | . . . 1 Weapon 5 | . . . 5 Highest Loss Streak 5 | . . . 5 To Critical Strikes . | . . . . Average Backups 6 | 3 4 7 7 Power 1 | 1 1 1 1 Propulsion 1 | 1 2 2 2 Utility . | . . 1 . Weapon 3 | . 1 3 4 Tool/Special . | . . . . Unused Backups 6 | . . . 6 Power 1 | . . . 1 Propulsion 2 | . . . 2 Utility . | . . . . Weapon 3 | . . . 3 Tool/Special . | . . . . Average Slot Usage (%) 80 | . 87 100 71 Engine 11 | . 14 14 10 Wheel 19 | . 28 28 14 Storage 12 | . 14 14 11 Protection 13 | . 2 14 14 Energy Gun 22 | . 28 28 18 Special Weapon 1 | . . . 1 Peak Build Rating 8 | 6 7 7 8 Average Rating 6 | 3 6 7 6 On Entrance 5 | . 6 7 7 Naked Turns . | . . . . Heaviest Build 18 | 12 15 15 18 Greatest Support 26 | 26 26 26 26 Greatest Overweight (x) 5 | . . . 5 Average Overweight (x) . | . . . . Largest Inventory Capacity 10 | 8 8 8 10 Average Capacity 8 | 6 8 8 8 Most Carried 9 | 5 7 8 9 Average Carried 6 | 3 4 7 7 Final Capacity 10 | 8 8 8 10 Final Carried 8 | 4 7 8 8 Class Distribution -------------------- 100% | Mutant Dominant Class ---------------- Mutant | -10/Materials Mutant | -10/Mines Mutant | -9/Materials Resources | -11 -10 -10 -9 ----------- Run | Yrd Mat Min Mat Matter Collected 320 | 231 . 39 50 Remotely . | . . . . Salvage Created 161 | . . . 161 Parts 13 | . . . 13 Haulers Intercepted . | . . . . Recyclers Shooed . | . . . . Parts Field Recycled . | . . . . Retrieved Matter . | . . . . Parts Self-Destructed . | . . . . Prevented . | . . . . Kills | -11 -10 -10 -9 ------- Run | Yrd Mat Min Mat Combat Hostiles Destroyed 4 | . . . 4 Guns 2 | . . . 2 AOE 2 | . . . 2 Classes Destroyed 2 | . . . 2 Grunt 2 | . . . 2 Sentry 2 | . . . 2 Best Kill Streak 2 | . . . 2 Combat Bots Only 2 | . . . 2 Max Kills in Single Turn 2 | . . . 2 Gunslinging . | . . . . Exploded 2 | . . . 2 Melee . | . . . . Uniques/NPCs Destroyed . | . . . . Combat | -11 -10 -10 -9 -------- Run | Yrd Mat Min Mat Hostile Shots Fired 78 | . . . 78 Missed 18 | . . . 18 Hits 60 | . . . 60 Melee 8 | . . . 8 Projectile 52 | . . . 52 Critical Strikes 7 | . . . 7 Actively Blocked 1 | . . . 1 Damage Taken 1106 | . . . 1106 Core 405 | . . . 405 Absorbed by Shields . | . . . . Redirected to Shielding 30 | . . . 30 Core Remaining (%) 100 | 100 . 100 . Volleys Fired 29 | . . . 29 Largest 2 | . . . 2 Hottest 100 | . . . 100 Shots Fired 35 | . . . 35 Gun 26 | . . . 26 Cannon . | . . . . Launcher 2 | . . . 2 Special 7 | . . . 7 Kinetic . | . . . . Thermal 33 | . . . 33 Explosive 2 | . . . 2 Electromagnetic . | . . . . Robot Hit Streak 8 | . . . 8 Robot Miss Streak 2 | . . . 2 Penetration Max . | . . . . Secondary Targets . | . . . . Shots Hit Robots 22 | . . . 22 Core Hits 10 | . . . 10 Critical Kills . | . . . . Critical Parts Destroyed . | . . . . Critical Strikes . | . . . . Melee Attacks . | . . . . Impact . | . . . . Slashing . | . . . . Piercing . | . . . . Sneak Attacks . | . . . . Combat Hostiles . | . . . . Follow-up Attacks . | . . . . Damage Inflicted 422 | . . . 422 Guns 210 | . . . 210 Cannons . | . . . . Explosions 188 | . . . 188 Melee . | . . . . Ramming . | . . . . Kinetic . | . . . . Thermal 234 | . . . 234 Explosive 188 | . . . 188 Electromagnetic . | . . . . Impact . | . . . . Slashing . | . . . . Piercing . | . . . . Highest Corruption . | . . . . Average Corruption . | . . . . Corruption Purged . | . . . . Corruption Blocked . | . . . . Overload Shots . | . . . . Overflow Damage 1 | . . . 1 Projectiles . | . . . . Explosions 1 | . . . 1 Melee . | . . . . Knockbacks . | . . . . Impact . | . . . . Kinetic . | . . . . Secondary . | . . . . Self-Inflicted Damage 86 | . . . 86 Shots 2 | . . . 2 Rammed . | . . . . Targets Rammed . | . . . . Kicked . | . . . . Crushed . | . . . . Highest Temperature 83 | . . . 83 Average Temperature 22 | . . . 22 Received Heat Transfer 315 | . . . 315 Siege Activations . | . . . . Martial Activations . | . . . . Shielding Activations . | . . . . Robots Disrupted . | . . . . Combat Hostiles . | . . . . Robots Corrupted . | . . . . Combat Hostiles . | . . . . Parts Fried . | . . . . Impact Corruptions . | . . . . Robots Melted . | . . . . Combat Hostiles . | . . . . Parts Melted 1 | . . . 1 Heat Transferred 525 | . . . 525 Parts Sabotaged . | . . . . Parts Stolen . | . . . . Parts Stripped . | . . . . Power Chain Reactions . | . . . . Alert | -11 -10 -10 -9 ------- Run | Yrd Mat Min Mat Maximum Alert Level . | . . . . Low Security (%) 100 | 100 100 100 100 Level 1 . | . . . . Level 2 . | . . . . Level 3 . | . . . . Level 4 . | . . . . Level 5 . | . . . . High Security . | . . . . Max Security . | . . . . Peak Influence 51 | . . . 51 Initial . | . . . . Average 2 | . . . 5 Influence Increases 121 | . 8 . 113 Destroy 0b10 Robot/C 80 | . . . 80 Destroy Leader 20 | . . . 20 Successful Hack 8 | . 8 . . Destroy Structure 13 | . . . 13 Influence Decreases 80 | . 8 . 72 Time Decay 50 | . 8 . 42 Lost Part 30 | . . . 30 Squads Dispatched . | . . . . Investigation . | . . . . Extermination . | . . . . Reinforcement . | . . . . Assault . | . . . . Garrison . | . . . . Intercept . | . . . . Searches Triggered . | . . . . Construction Impeded . | . . . . Haulers Reinforced . | . . . . Active Scanning Responses . | . . . . Cargo Convoy Interrupts . | . . . . Stealth | -11 -10 -10 -9 --------- Run | Yrd Mat Min Mat Distress Signals . | . . . . Communications Jammed . | . . . . Distress Signals . | . . . . Times Spotted 9 | . . . 9 Peak Tracking Total 7 | . . . 7 Tactical Retreats . | . . . . Traps | -11 -10 -10 -9 ------- Run | Yrd Mat Min Mat Traps Triggered . | . . . . Indirectly . | . . . . Trap Hack Attempts . | . . . . Triggered . | . . . . Disarmed . | . . . . Reprogrammed . | . . . . Reused . | . . . . Traps Extracted . | . . . . Installed . | . . . . Triggered . | . . . . Machines | -11 -10 -10 -9 ---------- Run | Yrd Mat Min Mat Machines Disabled . | . . . . Max in Single Turn . | . . . . Machines Repaired . | . . . . Machines Dismantled . | . . . . Machines Sabotaged . | . . . . Overloaded Fab Kills . | . . . . Hacking | -11 -10 -10 -9 --------- Run | Yrd Mat Min Mat Machines Accessed 2 | . 2 . . Terminals 2 | . 2 . . Fabricators . | . . . . Repair Stations . | . . . . Recycling Units . | . . . . Scanalyzers . | . . . . Garrison Access . | . . . . Total Hacks 4 | . 4 . . Successful 1 | . 1 . . Failed 3 | . 3 . . Catastrophic . | . . . . Database Lockouts . | . . . . Manual . | . . . . Terminals 4 | . 4 . . Fabricators . | . . . . Repair Stations . | . . . . Recycling Units . | . . . . Scanalyzers . | . . . . Garrison Access . | . . . . Terminal Hacks 1 | . 1 . . Level Access Points 1 | . 1 . . Fabricator Hacks . | . . . . Repair Station Hacks . | . . . . Recycling Unit Hacks . | . . . . Scanalyzer . | . . . . Garrison Access Hacks . | . . . . Unauthorized Hacks . | . . . . Terminals . | . . . . Fabricators . | . . . . Repair Stations . | . . . . Recycling Units . | . . . . Scanalyzers . | . . . . Garrison Access . | . . . . Data Cores Recovered . | . . . . Used . | . . . . Hacking Detections . | . . . . Full Trace Events . | . . . . Feedback Events . | . . . . Feedback Blocked . | . . . . Robot Schematics Acquired . | . . . . Robots Built . | . . . . Authchips . | . . . . Time . | . . . . Total Robot Build Rating . | . . . . Part Schematics Acquired . | . . . . Parts Built . | . . . . Authchips . | . . . . Time . | . . . . Total Part Build Rating . | . . . . Parts Repaired . | . . . . Time . | . . . . Parts Recycled . | . . . . Recycled Matter . | . . . . Retrieved Matter . | . . . . Retrieved Components . | . . . . Parts Scanalyzed . | . . . . Part Schematics Acquired . | . . . . Parts Damaged . | . . . . Bothacking | -11 -10 -10 -9 ------------ Run | Yrd Mat Min Mat Used RIF Installer . | . . . . Robots Hacked . | . . . . Non-combat . | . . . . Combat . | . . . . Robot Hacks Applied . | . . . . Relay Couplers Released . | . . . . Fabnet Peak Effective % . | . . . . Robots Rewired . | . . . . Allies Hacked . | . . . . Hacks Repelled . | . . . . Allies | -11 -10 -10 -9 -------- Run | Yrd Mat Min Mat Total Allies . | . . . . Largest Group . | . . . . Highest-Rated Group . | . . . . Highest-Rated Ally . | . . . . Total Orders . | . . . . Ally Attacks . | . . . . Total Damage . | . . . . Kills . | . . . . Allies Corrupted . | . . . . Allies Melted . | . . . . Intel | -11 -10 -10 -9 ------- Run | Yrd Mat Min Mat Active Infowar (turns) . | . . . . Robot Analysis Total . | . . . . Derelict Logs Recovered 1 | . . 1 . Drone Launches . | . . . . Drone Recoveries . | . . . . Exploration | -11 -10 -10 -9 ------------- Run | Yrd Mat Min Mat Turns Passed 477 | 65 46 95 271 Spaces Moved 407 | 65 46 105 191 Core 23 | 21 . . 2 Treads . | . . . . Legs . | . . . . Wheels 384 | 44 46 105 189 Hover . | . . . . Flight . | . . . . Fastest Speed 50 | 50 90 90 90 Average Speed 90 | 76 90 90 95 Slowest Speed 300 | 90 90 90 300 Overloaded Moves . | . . . . Propulsion Burnouts . | . . . . Robots Hopped . | . . . . Potential Cave-ins 4 | . . . 4 Cave-ins Triggered . | . . . . Exploration Rate (%) 15 | 5 16 19 20 Regions Visited 3 Branch Regions 1 Pre-discovered Areas . | . . . . Known Exits Taken 1 | . . 1 . Unknown Exits Taken 2 | 1 1 . . Scrap Searched 1 | . . 1 . Spaces Dug 6 | . . . 6 Terrain Destroyed 15 | . . . 15 Melee . | . . . . Projectile 6 | . . . 6 AOE 9 | . . . 9 Terrain Rammed . | . . . . Walls Destroyed . | . . . . Machines Disabled . | . . . . Actions | -11 -10 -10 -9 --------- Run | Yrd Mat Min Mat Total 465 | 78 50 105 232 Wait . | . . . . Move 404 | 64 45 104 191 Hop . | . . . . Pick Up 17 | 8 4 1 4 Fast Attach 2 | 2 . . . Attach 9 | 4 1 . 4 Detach . | . . . . Swap 3 | . . . 3 Drop 1 | . . . 1 Fire 29 | . . . 29 Melee . | . . . . Ram . | . . . . Kick . | . . . . Crush . | . . . . Escape Stasis . | . . . . Rewire . | . . . . Trap . | . . . . Miscellaneous . | . . . . Route ------- -11/Scrapyard -10/Materials (discovered 4 exits: Mat x3 / [*Min]) -10/Mines -9/Materials History --------- Turn | Location | Event 7 | -11/Scrapyard | Discovered new exit (range 16) 66 | -11/Scrapyard | Entered Materials 85 | -10/Materials | Identified exit to Materials 89 | -10/Materials | Discovered new exit (range 14) 112 | -10/Materials | Entered Mines 112 | -10/Mines | Discovered exit to Materials (range 8) 113 | -10/Mines | Learned Materials machine intel 207 | -10/Mines | Entered Materials 207 | -9/Materials | Evolved 2 slots: Utility x2 208 | -9/Materials | Loaded intel: 46 machine locations 329 | -9/Materials | Build established: Mutant 338 | -9/Materials | Lost 4 parts (1n1u2w) 473 | -9/Materials | Core integrity fell below 50% 476 | -9/Materials | Core integrity fell below 20% 478 | -9/Materials | Destroyed self with Mini Grenade Launcher Last Messages --------------- Lgt. Armor Plating melted. Y-45 Defender destroyed. Acquired 30 matter. Acquired Hvy. Assault Rifle. Acquired Med. Storage Unit. K-01 Serf collects debris. K-01 Serf cleans the Fusion Modulator. K-01 Serf cleans the Atomic Centrifuge. Acquired Mni. Grenade Launcher. K-01 Serf collects debris. Wheel destroyed. Sml. Laser destroyed. Ion Engine destroyed. Sml. Laser destroyed. Critical hit (Burn: +37). G-34 Mercenary destroyed. Acquired 20 matter. Critical hit (Burn: +37). Mni. Grenade Launcher destroyed. Destroyed Mni. Grenade Launcher. Map ----- +----------------------------------------------------+ | ??????????????????????????????"""""??# #?????????? | | ??????????????????????????????"""""??# #?????????? | | ?????????????????T????????????"""""??# #?????????? | | ???????????????????????????????"""???# #?????????? | | ?????????????????????????????????????# #?????????? | | ?????????????????????????????????????# #?????????? | | ??""?"?""????????????????????????????# #?????????? | | ???"?"?"?????????????????????????????# #?????????? | | ?????????????????????????????????????# #?????????? | | ?????????????????????????????????????# #?????????? | | ???????????????????? ??????????????# #?????????? | | ??????????????????? ??????????????# #?????????? | | ??????????????????? ??????????????# #?????????? | | ???????????????????# ??????????????# #?????????? | | ???????????????????# ??????????????# #?????????? | | ???????????????????# ???????????#### #?????????? | | ???????????????????# ??????????##! #?????????? | | ???????????????????# #?????????#! #######???? | | ???????????????????# ###########! #???? | | ???????????????????# # [ ##! ##### #???? | | ???????????????????# # """## ## #???? | | ???????????????????# + """###! ## #???? | | ???????????????????# #Y """#?##### ####???? | | ???????????????????# #?????## ##??????? | | ???????????????????# = """#??????# #???????? | | ???????????????????# l@ """#??????# #?####### | | "??????????????????+ =Y """#??????# #?# | | "??????????????????# [ = #??????# #?# | | "??????????????????#### Y ########### ### | | T?????????????????????#### #??# # | | "??????????"""T"""???????# #??# + """ " | | "????????????????????????# #??# # """ " | | "????????????????????????# #??# ###### # """ " | | ?????????????????????????# #??# #????# # | | ?????????????????????????# #??# #????# ####### | | ????????????????########## #??# #????# #?????? | | ????????????? #### #????# #?????? | | ????????????? #????# #?????? | | ????????????? ! #????# #?????? | | ??????????????############ !#????#+#?????? | | ?????????????????????????# #???? ?????? | | ?????????????????????????# """ #???? ?????? | | ?????????????????????????# """ #??? ????? | | ???????????????????????? """ #??? ????? | | ?????"""????????"????? / ? !! #???? | | ?????"""????????????? # ? !! #???? | | ?????"""?????????????########+### #? !% #???? | | ????????????????????????????????? #? #???? | | ????????????????????????????????? # #???? | | ????????????????????????????????? ####### ##???? | +----------------------------------------------------+ Best States ------------- Heat Dissipation 28 Energy Generation 10 Energy Capacity 250 Matter Stores 300 Matter Capacity 300 Sight Range 16 Terrain Scan Density 10 Armor Coverage 150 Power Shielding 33 Evasion (%) 50 Item Schematics ----------------- None Robot Schematics ------------------ None Fabricated ------------ Nothing Repaired ---------- Nothing Alien Tech Used ----------------- None Achievements -------------- None Challenges ------------ None Game ------ Seed ProcessingSapperDiverter Manual? 0 Play Time 00:08:12 Cumulative 27.7 hours Start 2025.05.11 @ 13:26:51 End 2025.05.11 @ 16:36:40 Sessions 3 Manual Loads 0 Difficulty Rogue Special Mode None Game No. 43 Rogue 41 Adventurer 0 Explorer 2 Win Type - Total 0 Types 0/0/0/0/0/0/0/0/0/0 Lore% 10 Gallery% 21 Achievement% 20 Wizard Run 0 Options --------- Layout 1 ASCII 0 Keyboard 0 Movement Mouse Keybinds 0 Fullscreen 1 Font 24/Smallcaps Map View 50x35 Zoom Use 0% Tactical HUD 0 Map Filters NONE Filters NONE Steam 1 RUN: 31894280-fa5c-4ec3-a90c-899fe9fdf849